bitfinex/quotes_SOLUSD_20250622
["timestamp","ask_amount","ask_price","bid_price","bid_amount"]
[1750555041228,31.84,136.6,136.56,25.23843396]
[1750555041644,31.84,136.6,136.55,7.32332478]
[1750555041950,31.84,136.6,136.57,17.91574646]
[1750555042257,31.82,136.6,136.56,17.91574646]
[1750555042936,31.82,136.6,136.56,10.81867422]
[1750555044053,10.81867422,136.58,136.51,15.4835]
[1750555044354,117.06832308,136.59,136.54,10.81867422]
[1750555044742,10.81867422,136.58,136.54,10.81867422]
[1750555044942,10.81867422,136.58,136.51,41.4835]
[1750555045251,10.81867422,136.58,136.53,18.14269091]
[1750555045431,117.06832308,136.59,136.54,10.81867422]
[1750555046858,117.06832308,136.59,136.54,18.14247282]
[1750555047262,10.81867422,136.58,136.51,41.4835]
[1750555047559,31.78,136.57,136.53,10.81867422]
[1750555049033,31.78,136.57,136.53,18.14303752]
[1750555049452,10.81867422,136.56,136.51,24.71857422]
[1750555049653,10.81867422,136.54,136.49,10.81867422]
[1750555049859,42.53867422,136.54,136.49,10.81867422]
[1750555050246,10.81867422,136.53,136.48,27.32129468]
[1750555050960,10.81867422,136.51,136.48,1.6028262]
[1750555051136,10.81867422,136.49,136.48,1.6028262]
[1750555051328,61.18832308,136.49,136.48,1.6028262]
[1750555051534,31.72,136.49,136.48,1.6028262]
[1750555053756,10.81867422,136.51,136.48,1.6028262]
[1750555053757,31.72,136.51,136.48,1.6028262]
[1750555054459,31.72,136.51,136.48,8.92990709]
[1750555054661,31.68,136.51,136.48,19.74858131]
[1750555055665,31.68,136.52,136.48,19.74858131]
[1750555055845,31.68,136.52,136.48,25.80178131]
[1750555056677,31.66,136.54,136.5,10.81867422]
[1750555056846,31.66,136.54,136.5,18.04522198]
[1750555058268,49.70522198,136.54,136.49,18.04522198]
[1750555059568,49.70522198,136.54,136.5,7.32590217]
[1750555061238,49.70522198,136.54,136.5,18.04522198]
[1750555061758,49.70522198,136.54,136.49,25.37176604]
[1750555062149,31.66,136.54,136.5,18.04522198]
[1750555062343,49.70522198,136.54,136.49,25.37176604]
[1750555063670,49.70522198,136.54,136.49,7.32654406]
[1750555063968,49.70522198,136.54,136.49,25.37176604]
[1750555064561,18.04522198,136.53,136.49,7.32654406]
[1750555065351,31.66,136.54,136.49,7.32654406]
[1750555065673,18.04522198,136.53,136.49,7.32654406]
[1750555066376,31.66,136.54,136.49,7.32654406]
[1750555066675,18.04522198,136.53,136.49,7.32654406]
[1750555067757,18.04522198,136.51,136.48,8.92977984]
[1750555068263,31.52,136.51,136.48,8.92977984]
[1750555068448,49.56522198,136.51,136.48,8.92977984]
[1750555068850,31.52,136.51,136.48,8.92977984]
[1750555070347,49.66522198,136.52,136.48,8.92977984]
[1750555070750,18.04522198,136.51,136.48,8.92977984]
[1750555071159,10.0,136.45,136.41,6.5477]
[1750555071378,28.04522198,136.44,136.4,18.04522198]
[1750555071569,10.0,136.44,136.41,18.04522198]
[1750555072292,10.0,136.44,136.42,7.33030347]
[1750555073269,10.0,136.48,136.43,18.04522198]
[1750555073450,7.44,136.52,136.47,18.04522198]
[1750555073652,17.44,136.52,136.49,18.04522198]
[1750555073860,10.0,136.51,136.48,7.32708089]
[1750555074746,10.0,136.51,136.47,7.32750478]
[1750555074747,10.0,136.5,136.47,7.32750478]
[1750555075478,10.0,136.49,136.47,7.32750478]
[1750555076191,10.0,136.49,136.46,7.32811178]
[1750555077274,28.04522198,136.5,136.46,7.32811178]
[1750555077475,10.0,136.49,136.46,7.32811178]
[1750555077661,28.04522198,136.5,136.46,7.32811178]
[1750555077861,10.0,136.49,136.46,7.32811178]
[1750555078379,10.0,136.49,136.45,18.04522198]
[1750555078978,10.0,136.49,136.44,25.65151155]
[1750555079181,10.0,136.49,136.45,10.83502781]
[1750555079557,10.0,136.49,136.46,7.32815477]
[1750555080374,49.42,136.52,136.48,10.83502781]
[1750555081262,10.0,136.51,136.46,25.64854169]
[1750555081486,10.0,136.51,136.48,10.83502781]
[1750555081692,10.0,136.51,136.49,7.32654406]
[1750555082064,10.0,136.51,136.48,7.32696065]
[1750555082288,20.83502781,136.51,136.48,7.32696065]
[1750555082464,10.0,136.51,136.48,7.32696065]
[1750555083395,10.0,136.51,136.48,18.16198846]
[1750555083698,39.42,136.52,136.49,10.83502781]
[1750555083895,49.42,136.52,136.49,10.83502781]
[1750555084069,7.44,136.52,136.49,10.83502781]
[1750555084264,7.44,136.52,136.48,25.64466287]
[1750555084476,10.0,136.54,136.5,10.83502781]
[1750555084790,44.22042781,136.55,136.48,18.16198846]
[1750555084791,10.0,136.52,136.48,18.16198846]
[1750555084975,10.0,136.52,136.45,26.0]
[1750555084976,10.0,136.49,136.45,10.83502781]
[1750555085302,10.0,136.49,136.4,68.86661552]
[1750555085504,20.83502781,136.48,136.43,36.83502781]
[1750555085798,10.0,136.46,136.44,7.32922896]
[1750555087568,10.0,136.47,136.41,10.83502781]
[1750555087768,10.0,136.46,136.42,10.83502781]
[1750555088581,20.83502781,136.47,136.42,10.83502781]
[1750555088785,10.0,136.46,136.42,10.83502781]
[1750555088985,10.0,136.46,136.43,10.83502781]
[1750555089191,10.0,136.46,136.42,10.83502781]
[1750555089370,20.83502781,136.46,136.41,10.83502781]
[1750555089783,20.83502781,136.46,136.42,7.33030347]
[1750555090887,20.83502781,136.46,136.42,18.16533128]
[1750555091293,20.83502781,136.46,136.42,7.33030347]
[1750555091983,10.83502781,136.46,136.42,7.33030347]
[1750555092202,10.0,136.46,136.42,36.49108996]
[1750555092497,20.83502781,136.46,136.42,7.33030347]
[1750555092695,10.0,136.46,136.42,7.33030347]
[1750555093002,20.83502781,136.46,136.42,7.33030347]
[1750555093304,10.83502781,136.44,136.42,7.33030347]
[1750555093505,10.0,136.43,136.42,7.33030347]
[1750555093998,20.83502781,136.43,136.39,7.33191582]
[1750555094203,10.0,136.41,136.38,7.33245343]
[1750555094697,33.4325,136.43,136.38,7.33245343]
[1750555094897,10.0,136.41,136.38,25.66358702]
[1750555095099,10.83502781,136.42,136.38,25.66358702]
[1750555095304,10.0,136.41,136.38,25.66358702]
[1750555095614,10.0,136.41,136.38,36.49861483]
[1750555095903,44.26752781,136.43,136.39,10.83502781]
[1750555096087,10.0,136.42,136.39,10.83502781]
[1750555096289,10.0,136.42,136.4,7.33137829]
[1750555096490,10.0,136.41,136.4,7.33137829]
[1750555097675,20.83502781,136.41,136.35,44.33442955]
[1750555097874,20.83502781,136.37,136.33,7.33471348]
[1750555098104,10.83502781,136.36,136.33,7.33471348]
[1750555098301,20.83502781,136.36,136.33,7.33471348]
[1750555098559,10.0,136.35,136.33,7.33471348]
[1750555098679,20.83502781,136.35,136.3,10.83502781]
[1750555098999,10.0,136.33,136.3,7.33675715]
[1750555099205,10.0,136.34,136.3,18.17178496]
[1750555099622,10.0,136.33,136.3,18.17178496]
[1750555100080,10.0,136.34,136.3,18.17178496]
[1750555100284,10.0,136.33,136.3,7.33675715]
[1750555100581,10.0,136.34,136.3,18.17178496]
[1750555100781,10.0,136.34,136.3,36.51367784]
[1750555100976,10.0,136.34,136.3,25.67865003]
[1750555101194,10.0,136.33,136.3,25.67865003]
[1750555101405,10.0,136.33,136.3,36.51367784]
[1750555101778,10.0,136.34,136.3,36.51367784]
[1750555102908,20.83502781,136.34,136.3,25.67865003]
[1750555103090,20.83502781,136.34,136.3,36.51367784]
[1750555103293,10.0,136.34,136.3,36.51367784]
[1750555103808,31.98,136.36,136.32,10.83502781]
[1750555104106,10.0,136.34,136.31,10.83502781]
[1750555104826,20.83502781,136.33,136.28,7.33783387]
[1750555104990,10.0,136.32,136.28,18.17286168]
[1750555105524,10.0,136.31,136.28,7.33783387]
[1750555105699,20.83502781,136.31,136.28,7.33783387]
[1750555106037,10.0,136.3,136.28,7.33783387]
[1750555106190,10.0,136.3,136.26,10.83502781]
[1750555106191,10.0,136.29,136.26,7.3389109]
[1750555106507,10.0,136.28,136.25,7.33944954]
[1750555106693,20.83502781,136.29,136.25,7.33944954]
[1750555106897,10.0,136.28,136.25,7.33944954]
[1750555107405,10.0,136.29,136.25,10.83502781]
[1750555107594,10.0,136.29,136.26,10.83502781]
[1750555107790,10.0,136.28,136.26,10.83502781]
[1750555108309,10.0,136.29,136.27,10.83502781]
[1750555108516,42.04,136.31,136.28,10.83502781]
[1750555108808,10.0,136.3,136.29,7.33729547]
[1750555109011,11.6473,136.33,136.29,18.17232328]
[1750555109187,11.6473,136.33,136.3,10.83502781]
[1750555109388,10.0,136.32,136.29,18.17232328]
[1750555109784,10.0,136.32,136.3,10.83502781]
[1750555110503,10.0,136.32,136.29,7.33729547]
[1750555110703,10.0,136.32,136.31,7.33621891]
[1750555111018,10.0,136.33,136.31,7.33621891]
[1750555111717,10.0,136.33,136.31,18.17124672]
[1750555112093,10.0,136.34,136.32,10.83502781]
[1750555112911,10.0,136.34,136.33,18.17017047]
[1750555113220,10.0,136.34,136.33,7.33514266]
[1750555116599,10.0,136.34,136.32,10.83502781]
[1750555117913,10.0,136.34,136.33,18.17017047]
[1750555118214,10.0,136.34,136.33,7.33514266]
[1750555120612,10.0,136.34,136.32,7.33568075]
[1750555121422,10.0,136.34,136.32,18.17070856]
[1750555122910,10.0,136.34,136.33,10.83502781]
[1750555123105,10.0,136.34,136.32,18.17070856]
[1750555123307,10.0,136.34,136.32,7.33568075]
[1750555124124,10.0,136.32,136.28,10.83502781]
[1750555124817,10.83502781,136.33,136.28,10.83502781]
[1750555124818,10.0,136.31,136.28,7.33783387]
[1750555125020,10.0,136.3,136.28,18.17286168]
[1750555127802,10.0,136.3,136.28,10.83502781]
[1750555128003,10.0,136.3,136.27,18.34492106]
[1750555128200,10.0,136.3,136.27,29.17994887]
[1750555128408,10.0,136.3,136.27,10.83502781]
[1750555128611,10.0,136.28,136.25,18.17447735]
[1750555129023,10.0,136.28,136.26,10.83502781]
[1750555129633,10.0,136.28,136.27,7.33837234]
[1750555132622,10.0,136.29,136.26,18.17393871]
[1750555133114,10.0,136.28,136.26,18.17393871]
[1750555134120,10.0,136.28,136.26,7.3389109]
[1750555135736,20.83502781,136.29,136.26,7.3389109]
[1750555135921,10.0,136.28,136.26,7.3389109]
[1750555136733,10.0,136.29,136.25,36.5231012]
[1750555136938,10.0,136.29,136.21,70.95001102]
[1750555136939,10.0,136.29,136.26,10.83502781]
[1750555137235,10.0,136.28,136.25,10.83502781]
[1750555137428,10.0,136.29,136.25,10.83502781]
[1750555137629,10.0,136.28,136.25,10.83502781]
[1750555138020,20.83502781,136.29,136.25,10.83502781]
[1750555138220,10.0,136.27,136.24,10.83502781]
[1750555138419,10.0,136.27,136.23,10.83502781]
[1750555138641,10.0,136.27,136.24,7.33998825]
[1750555140041,10.0,136.27,136.24,18.17501606]
[1750555140341,10.0,136.26,136.24,18.17501606]
[1750555141222,10.0,136.27,136.24,18.17501606]
[1750555141420,10.0,136.26,136.24,18.17501606]
[1750555142639,10.0,136.26,136.24,10.83502781]
[1750555142840,10.0,136.27,136.24,10.83502781]
[1750555143142,10.0,136.29,136.25,10.83502781]
[1750555143341,10.0,136.29,136.22,25.69373072]
[1750555143580,10.0,136.29,136.25,10.83502781]
[1750555143923,10.83502781,136.3,136.22,25.69373072]
[1750555143924,10.0,136.3,136.26,10.83502781]
[1750555144331,10.0,136.28,136.26,10.83502781]
[1750555144727,10.0,136.3,136.27,7.33837234]
[1750555145032,10.0,136.28,136.27,7.33837234]
[1750555145224,10.0,136.29,136.27,7.33837234]
[1750555145423,10.0,136.28,136.27,7.33837234]
[1750555147651,10.0,136.31,136.27,18.17340015]
[1750555147945,10.0,136.3,136.27,18.17340015]
[1750555148149,10.0,136.3,136.28,10.83502781]
[1750555148346,10.0,136.31,136.28,10.83502781]
[1750555148544,18.51502781,136.33,136.27,25.68430321]
[1750555148545,10.0,136.3,136.29,10.83502781]
[1750555148734,10.0,136.3,136.28,10.83502781]
[1750555149549,10.0,136.3,136.29,7.33729547]
[1750555152756,10.0,136.3,136.27,18.34593087]
[1750555152930,10.0,136.31,136.29,10.83502781]
[1750555153129,10.0,136.31,136.27,18.34593087]
[1750555153439,10.0,136.31,136.28,10.83502781]
[1750555153847,10.0,136.32,136.3,10.83502781]
[1750555154854,10.0,136.31,136.3,7.33675715]
[1750555155055,10.0,136.27,136.24,7.33998825]
[1750555155358,10.0,136.24,136.22,10.83502781]
[1750555155969,10.0,136.24,136.21,7.34160487]
[1750555156156,10.0,136.24,136.21,18.17663268]
[1750555156353,10.0,136.24,136.22,10.83502781]
[1750555156773,10.0,136.24,136.23,7.34052704]
[1750555160663,10.0,136.25,136.22,10.83502781]
[1750555160847,10.0,136.24,136.22,10.83502781]
[1750555161044,10.0,136.25,136.2,25.6968734]
[1750555161249,10.0,136.24,136.21,10.83502781]
[1750555161451,10.0,136.24,136.2,36.53190121]
[1750555161752,10.0,136.23,136.2,36.53190121]
[1750555161950,10.0,136.23,136.2,18.17717171]
[1750555162662,10.0,136.18,136.16,4.57763387]
[1750555162968,20.83502781,136.17,136.16,4.57763387]
[1750555163571,10.0,136.17,136.16,11.92193469]
[1750555163766,10.0,136.18,136.16,11.92193469]
[1750555163986,10.0,136.2,136.16,11.92193469]
[1750555164142,11.6453,136.22,136.16,30.28268674]
[1750555164347,1.6453,136.22,136.19,10.83502781]
[1750555164648,11.6453,136.22,136.2,7.3421439]
[1750555164963,10.0,136.23,136.2,18.17717171]
[1750555165145,10.0,136.23,136.2,36.53253147]
[1750555165340,10.0,136.22,136.2,36.53253147]
[1750555165540,10.0,136.23,136.2,36.53253147]
[1750555166269,10.0,136.23,136.2,7.3421439]
[1750555166465,10.0,136.21,136.2,7.3421439]
[1750555169044,10.0,136.22,136.19,10.83502781]
[1750555169460,10.0,136.21,136.19,10.83502781]
[1750555170446,10.0,136.22,136.2,7.3421439]
[1750555170674,10.0,136.23,136.2,7.3421439]
[1750555170854,10.0,136.22,136.2,7.3421439]
[1750555171052,10.0,136.24,136.21,10.83502781]
[1750555171572,10.0,136.25,136.23,10.83502781]
[1750555171789,10.0,136.27,136.21,6.3678]
[1750555171951,10.0,136.26,136.24,10.83502781]
[1750555172655,10.0,136.26,136.25,7.33944954]
[1750555172852,10.0,136.26,136.23,7.34000636]
[1750555172853,10.0,136.25,136.23,7.34000636]
[1750555173062,10.0,136.21,136.2,7.3421439]
[1750555173259,10.0,136.22,136.2,7.3421439]
[1750555173619,10.0,136.23,136.2,18.17717171]
[1750555173773,10.0,136.22,136.2,36.53253147]
[1750555174073,10.0,136.24,136.21,10.83502781]
[1750555174273,10.0,136.23,136.22,10.83502781]
[1750555174649,10.0,136.27,136.22,36.52875853]
[1750555174956,10.0,136.26,136.25,10.83502781]
[1750555175265,11.6119,136.28,136.24,10.83502781]
[1750555175570,10.0,136.26,136.22,25.69373072]
[1750555175768,1.6119,136.28,136.25,10.83502781]
[1750555175950,17.52,136.29,136.26,10.83502781]
[1750555176152,10.0,136.3,136.28,10.83502781]
[1750555176367,10.0,136.31,136.28,10.83502781]
[1750555176572,10.0,136.32,136.31,7.33621891]
[1750555176777,10.0,136.32,136.31,18.17124672]
[1750555176981,10.0,136.33,136.31,18.17124672]
[1750555177389,10.0,136.32,136.31,18.17124672]
[1750555177580,10.0,136.33,136.31,18.17124672]
[1750555177774,10.0,136.32,136.31,7.33621891]
[1750555178376,52.49502781,136.32,136.26,18.34686083]
[1750555178577,10.0,136.29,136.26,25.68577173]
[1750555178785,10.0,136.29,136.26,7.3389109]
[1750555178993,10.0,136.28,136.26,7.3389109]
[1750555179366,52.49502781,136.27,136.19,7.34268301]
[1750555179567,10.0,136.23,136.19,18.17771082]
[1750555180464,10.0,136.22,136.19,25.69939055]
[1750555180663,10.0,136.22,136.19,36.53441836]
[1750555180898,9.5,136.22,136.19,43.8267163]
[1750555181894,9.5,136.22,136.19,25.69939055]
[1750555182101,9.5,136.22,136.19,7.34268301]
[1750555182269,9.5,136.21,136.19,7.34268301]
[1750555182979,9.5,136.22,136.19,7.34268301]
[1750555183187,9.5,136.21,136.17,7.34376147]
[1750555183482,9.5,136.21,136.18,18.12732575]
[1750555184098,9.5,136.23,136.17,25.70316515]
[1750555184276,9.5,136.21,136.19,18.12732575]
[1750555184978,9.5,136.22,136.19,18.12732575]
[1750555185174,9.5,136.21,136.2,7.3421439]
[1750555185591,9.5,136.23,136.2,7.3421439]
[1750555185997,9.5,136.21,136.2,7.3421439]
[1750555186877,9.5,136.21,136.19,18.12732575]
[1750555187077,9.5,136.22,136.19,18.12732575]
[1750555187791,9.5,136.21,136.19,18.12732575]
[1750555187989,18.12732575,136.24,136.19,18.12732575]
[1750555187990,9.5,136.22,136.2,7.3421439]
[1750555188574,0.5,136.23,136.2,7.3421439]
[1750555188575,9.5,136.21,136.2,7.3421439]
[1750555189974,9.5,136.21,136.17,25.70316515]
[1750555190165,9.5,136.21,136.19,18.12732575]
[1750555190998,9.5,136.21,136.18,18.12732575]
[1750555192595,27.62732575,136.23,136.18,18.12732575]
[1750555192791,9.5,136.21,136.19,25.47000876]
[1750555193402,9.5,136.22,136.19,25.47000876]
[1750555193792,9.5,136.23,136.19,25.47000876]
[1750555194585,9.5,136.21,136.19,25.47000876]
[1750555195499,9.5,136.21,136.19,7.34268301]
[1750555195693,9.5,136.21,136.19,25.47000876]
[1750555195888,9.5,136.22,136.19,25.47000876]
[1750555196084,9.5,136.21,136.19,25.47000876]
[1750555198104,27.62732575,136.21,136.17,7.34376147]
[1750555198286,1.5543,136.22,136.17,7.34376147]
[1750555198287,9.5,136.19,136.17,7.34376147]
[1750555198487,9.5,136.19,136.17,25.47108722]
[1750555198691,9.5,136.19,136.17,7.34376147]
[1750555199489,9.5,136.19,136.17,25.47108722]
[1750555200284,11.0543,136.22,136.18,18.12732575]
[1750555200684,11.0543,136.22,136.19,18.12732575]
[1750555201023,11.0543,136.22,136.19,10.87666711]
[1750555201024,9.5,136.2,136.19,10.87666711]
[1750555201188,9.5,136.2,136.17,36.57983226]
[1750555201387,9.5,136.2,136.18,10.87666711]
[1750555202189,11.0543,136.22,136.2,7.3421439]
[1750555202397,9.5,136.21,136.2,7.3421439]
[1750555203412,9.5,136.2,136.17,7.34376147]
[1750555203915,9.5,136.2,136.17,18.22042858]
[1750555204090,9.5,136.17,136.16,4.57763387]
[1750555204288,20.37666711,136.17,136.16,4.57763387]
[1750555206490,41.16,136.17,136.16,4.57763387]
[1750555206697,9.5,136.17,136.16,11.92193469]
[1750555207422,9.5,136.17,136.16,4.57763387]
[1750555208021,9.5,136.17,136.16,11.92193469]
[1750555208741,9.5,136.17,136.16,4.57763387]
[1750555209819,27.64294148,136.17,136.16,4.57763387]
[1750555216029,27.64294148,136.17,136.16,11.92193469]
[1750555216396,28.14294148,136.17,136.16,4.57763387]
[1750555216596,27.64294148,136.17,136.16,4.57763387]
[1750555217513,27.64294148,136.17,136.16,11.92193469]
[1750555218434,9.5,136.17,136.16,11.92193469]
[1750555219331,27.64294148,136.17,136.16,11.92193469]
[1750555219717,9.5,136.17,136.16,4.57763387]
[1750555219919,9.5,136.17,136.16,11.92193469]
[1750555220229,41.16,136.18,136.16,11.92193469]
[1750555220430,9.5,136.17,136.16,11.92193469]
[1750555220643,9.5,136.18,136.16,11.92193469]
[1750555220933,9.5,136.23,136.18,6.4884]
[1750555221235,9.5,136.23,136.22,25.4840074]
[1750555221726,9.5,136.28,136.22,43.8366722]
[1750555221916,9.5,136.29,136.27,18.14294148]
[1750555222114,9.5,136.27,136.25,18.14294148]
[1750555222434,9.5,136.3,136.26,18.14294148]
[1750555222628,9.5,136.29,136.26,18.14294148]
[1750555223104,9.5,136.27,136.26,18.14294148]
[1750555223309,9.5,136.27,136.26,25.48185238]
[1750555223512,9.5,136.29,136.26,25.48185238]
[1750555223912,9.5,136.28,136.26,25.48185238]
[1750555224113,9.5,136.27,136.26,25.48185238]
[1750555224439,9.5,136.27,136.26,7.3389109]
[1750555226850,9.5,136.3,136.26,25.48185238]
[1750555227007,9.5,136.29,136.26,25.48185238]
[1750555227203,9.5,136.28,136.26,25.48185238]
[1750555227517,9.5,136.27,136.26,25.48185238]
[1750555228233,9.5,136.27,136.26,7.3389109]
[1750555230026,9.5,136.27,136.21,29.64632329]
[1750555230027,9.5,136.27,136.25,7.33944954]
[1750555230243,9.5,136.25,136.24,7.3398753]
[1750555233810,9.5,136.25,136.21,18.35315486]
[1750555234009,9.5,136.25,136.22,18.14294148]
[1750555234418,9.5,136.24,136.22,18.14294148]
[1750555234820,9.5,136.24,136.23,7.34052704]
[1750555237918,9.5,136.26,136.23,18.21169752]
[1750555238129,9.5,136.24,136.23,7.34052704]
[1750555238338,9.5,136.22,136.2,7.3421439]
[1750555238832,9.5,136.2,136.19,7.34259214]
[1750555239130,9.5,136.19,136.17,7.34376147]
[1750555239342,9.5,136.17,136.16,11.9218791]
[1750555241933,18.1395458,136.19,136.16,11.9218791]
[1750555241934,9.5,136.18,136.16,11.9218791]
[1750555242139,27.6395458,136.17,136.16,4.57763387]
[1750555243332,9.5,136.17,136.16,4.57763387]
[1750555243514,27.6395458,136.17,136.16,4.57763387]
[1750555245247,59.2795458,136.17,136.16,4.57763387]
[1750555247428,59.2795458,136.17,136.05,19.98828906]
[1750555247429,9.5,136.1,136.05,19.98828906]
[1750555247744,9.5,136.05,136.04,7.35077918]
[1750555248042,9.5,136.06,136.04,25.49032498]
[1750555248244,9.5,136.07,136.04,7.35077918]
[1750555248446,9.5,136.08,136.04,25.72772713]
[1750555248622,9.5,136.09,136.06,18.1395458]
[1750555248826,9.5,136.15,136.09,7.8392]
[1750555249035,9.5,136.17,136.12,18.1395458]
[1750555249323,9.5,136.17,136.12,26.0]
[1750555249548,9.5,136.17,136.14,18.1395458]
[1750555249755,9.5,136.18,136.15,18.1395458]
[1750555249918,9.5,136.17,136.15,18.1395458]
[1750555250115,9.5,136.18,136.16,18.1395458]
[1750555250316,41.84,136.2,136.16,18.1395458]
[1750555250552,9.5,136.17,136.13,26.0]
[1750555250729,9.5,136.15,136.14,7.34537975]
[1750555251841,9.5,136.15,136.13,7.34591306]
[1750555252031,9.5,136.14,136.13,7.34591306]
[1750555252743,9.5,136.15,136.13,25.48545886]
[1750555253430,9.5,136.14,136.13,7.34591306]
[1750555253632,9.5,136.15,136.13,25.48545886]
[1750555253830,9.5,136.16,136.14,18.1395458]
[1750555254426,9.5,136.17,136.15,18.1395458]
[1750555254753,9.5,136.18,136.16,25.48384662]
[1750555255045,9.5,136.17,136.16,25.48384662]
[1750555255243,9.5,136.19,136.16,25.48384662]
[1750555256023,9.5,136.17,136.16,25.48384662]
[1750555256644,9.5,136.19,136.16,25.48384662]
[1750555256844,9.5,136.18,136.16,25.48384662]
[1750555257040,9.5,136.19,136.16,25.48384662]
[1750555257418,9.5,136.17,136.16,25.48384662]
[1750555257623,9.5,136.19,136.16,25.48384662]
[1750555258151,9.5,136.18,136.16,25.48384662]
[1750555258847,9.5,136.19,136.16,25.48384662]
[1750555259247,9.5,136.17,136.16,25.48384662]
[1750555259451,9.5,136.19,136.16,25.48384662]
[1750555260446,67.8887,136.22,136.16,7.34430082]
[1750555260447,9.5,136.17,136.16,7.34430082]
[1750555260836,9.5,136.17,136.16,18.2277014]
[1750555261454,9.5,136.17,136.16,7.34430082]
[1750555261627,9.5,136.14,136.09,62.94737415]
[1750555261829,9.5,136.12,136.1,18.23093915]
[1750555262325,9.5,136.12,136.09,7.8392]
[1750555262326,9.5,136.09,136.08,7.34861845]
[1750555262936,9.5,136.06,136.02,7.35186002]
[1750555263139,9.5,136.06,136.02,18.2352606]
[1750555263457,9.5,136.05,136.02,18.2352606]
[1750555264050,9.5,136.05,136.02,7.35186002]
[1750555264240,9.5,136.04,136.02,7.35186002]
[1750555264440,10.88340058,136.05,136.02,7.35186002]
[1750555264441,9.5,136.03,136.02,7.35186002]
[1750555264642,9.5,136.02,136.01,7.35237717]
[1750555264953,9.5,136.03,136.01,7.35237717]
[1750555265164,9.5,136.02,136.01,7.35237717]
[1750555265641,9.5,136.01,136.0,8.35277398]
[1750555268240,9.5,136.02,136.0,8.35277398]
[1750555268533,9.5,136.03,136.01,18.18098581]
[1750555268934,9.5,136.02,136.0,8.35277398]
[1750555269526,9.5,136.02,136.0,26.53375979]
[1750555269745,9.5,136.03,136.01,18.18098581]
[1750555270356,9.5,136.03,136.0,26.73512692]
[1750555270558,9.5,136.02,136.0,44.91611273]
[1750555271348,9.5,136.03,136.0,44.91611273]
[1750555271532,9.5,136.02,136.0,44.91611273]
[1750555271734,9.5,136.03,136.0,26.73512692]
[1750555271941,9.5,136.02,136.0,44.91611273]
[1750555272268,9.5,136.02,136.0,26.73512692]
[1750555272443,9.5,136.03,136.0,44.91611273]
[1750555273757,9.5,136.03,136.01,18.18098581]
[1750555274058,9.5,136.03,136.0,26.73512692]
[1750555274243,9.5,136.03,136.01,18.18098581]
[1750555274440,9.5,136.04,136.02,18.18098581]
[1750555274757,9.5,136.03,136.01,18.18098581]
[1750555275656,9.5,136.04,136.01,18.18098581]
[1750555275962,9.5,136.05,136.02,25.53284583]
[1750555276372,9.5,136.04,136.02,43.91249588]
[1750555277554,9.5,136.03,136.01,7.35240055]
[1750555277936,9.5,136.03,136.01,25.53338636]
[1750555278466,9.5,136.05,136.02,18.18098581]
[1750555278632,9.5,136.05,136.01,25.73340194]
[1750555278966,9.5,136.05,136.03,18.18098581]
[1750555279139,9.5,136.05,136.04,18.18098581]
[1750555280072,9.5,136.07,136.04,25.53176499]
[1750555280260,9.5,136.08,136.05,18.18098581]
[1750555280457,9.5,136.07,136.06,18.18098581]
[1750555280664,26.04098581,136.11,136.06,18.18098581]
[1750555280665,9.5,136.09,136.06,18.18098581]
[1750555280957,9.5,136.11,136.08,18.18098581]
[1750555281142,9.5,136.1,136.09,18.18098581]
[1750555282167,9.5,136.1,136.09,25.52906428]
[1750555282353,9.5,136.13,136.09,25.52906428]
[1750555282564,9.5,136.13,136.11,18.18098581]
[1750555282744,9.5,136.14,136.12,18.18098581]
[1750555282939,9.5,136.16,136.09,25.71827466]
[1750555283147,9.5,136.16,136.13,18.18098581]
[1750555283459,9.5,136.13,136.12,18.18098581]
[1750555283656,9.5,136.13,136.09,25.71827466]